fUST/lending_fUST_20250724
["ID","MTS","AMOUNT","RATE_DAILY","PERIOD"]
[374445723,1753303847036,-716.81,0.00022495,2]
[374445724,1753303847050,-151.0,0.00022498,7]
[374445725,1753303847061,-151.0,0.00022498,7]
[374445726,1753303847071,-151.0,0.00022498,7]
[374445727,1753303847080,-151.0,0.00022498,7]
[374445728,1753303847089,-227.0,0.00022499,2]
[374445729,1753303847099,-151.0,0.00022499,2]
[374445730,1753303847113,-198.0,0.00022499,2]
[374445731,1753303847123,-584.0,0.00022499,2]
[374445732,1753303847132,-424.0,0.00022499,2]
[374445733,1753303847143,-200.0,0.00022499,2]
[374445734,1753303847152,-200.0,0.00022499,2]
[374445735,1753303847162,-160.31443999,0.00022499,2]
[374445736,1753303847171,-108252.89732853,0.000225,2]
[374445738,1753303847273,-530.25,0.000225,2]
[374445739,1753303847309,-8183.25923685,0.000225,2]
[374445740,1753303847333,-151.0,0.00020663,2]
[374445741,1753303847342,-151.0,0.00021951,2]
[374445742,1753303847352,-181423.71264395,0.000225,2]
[374445743,1753303847361,-151.0,0.000225,7]
[374445744,1753303847371,-151.0,0.000225,7]
[374445745,1753303847380,-153.353469,0.000225,7]
[374445746,1753303847390,-151.0,0.000225,7]
[374445747,1753303847399,-151.0,0.000225,7]
[374445748,1753303847408,-151.0,0.000225,7]
[374445749,1753303847417,-151.0,0.000225,7]
[374445750,1753303847430,-151.0,0.000225,7]
[374445751,1753303847439,-151.0,0.000225,7]
[374445752,1753303847448,-151.0,0.000225,7]
[374445753,1753303847457,-151.0,0.000225,7]
[374445754,1753303847466,-151.0,0.000225,7]
[374445756,1753303847476,-151.0,0.000225,7]
[374445758,1753303847485,-193.400257,0.000225,7]
[374445760,1753303847495,-193.400257,0.000225,7]
[374445762,1753303847504,-151.0,0.000225,7]
[374445764,1753303847514,-151.0,0.000225,7]
[374445765,1753303847523,-151.0,0.000225,7]
[374445767,1753303847532,-151.0,0.000225,7]
[374445768,1753303847541,-151.0,0.000225,7]
[374445770,1753303847551,-151.0,0.000225,7]
[374445772,1753303847560,-152.11147,0.000225,7]
[374445773,1753303847569,-151.0,0.000225,7]
[374445775,1753303847579,-151.0,0.000225,7]
[374445777,1753303847588,-151.0,0.000225,7]
[374445779,1753303847597,-182.933249,0.000225,7]
[374445781,1753303847607,-182.933249,0.000225,7]
[374445783,1753303847616,-229.78124,0.000225,7]
[374445784,1753303847626,-151.0,0.000225,7]
[374445786,1753303847635,-229.78124,0.000225,7]
[374445788,1753303847644,-2456.940353,0.000225,7]
[374445790,1753303847653,-151.0,0.000225,7]
[374445792,1753303847662,-151.0,0.000225,7]
[374445794,1753303847671,-151.0,0.000225,7]
[374445796,1753303847683,-1157.665437,0.000225,7]
[374445798,1753303847692,-1157.665437,0.000225,7]
[374445800,1753303847702,-151.0,0.000225,7]
[374445802,1753303847711,-151.0,0.000225,7]
[374445804,1753303847721,-1023.213546,0.000225,7]
[374445806,1753303847730,-1023.213546,0.000225,7]
[374445808,1753303847740,-151.0,0.000225,7]
[374445810,1753303847749,-151.0,0.000225,7]
[374445812,1753303847758,-151.0,0.000225,7]
[374445814,1753303847768,-20526.65556064,0.000225,2]
[374445816,1753303847778,-151.0,0.000225,7]
[374445818,1753303847787,-421.795716,0.000225,7]
[374445820,1753303847797,-332.903844,0.000225,7]
[374445822,1753303847806,-421.795716,0.000225,7]
[374445824,1753303847815,-332.903844,0.000225,7]
[374445826,1753303847824,-231.325386,0.000225,7]
[374445828,1753303847834,-231.325386,0.000225,7]
[374445830,1753303847843,-231.325386,0.000225,7]
[374445832,1753303847853,-231.325386,0.000225,7]
[374445834,1753303847862,-314.586052,0.000225,7]
[374445836,1753303847872,-151.0,0.000225,7]
[374445838,1753303847882,-151.0,0.000225,7]
[374445840,1753303847891,-314.586052,0.000225,7]
[374445842,1753303847901,-151.0,0.000225,7]
[374445844,1753303847911,-202.088154,0.000225,7]
[374445846,1753303847920,-891.964585,0.000225,7]
[374445848,1753303847931,-891.964585,0.000225,7]
[374445850,1753303847940,-151.0,0.000225,7]
[374445852,1753303847950,-381.406351,0.000225,7]
[374445854,1753303847960,-381.406351,0.000225,7]
[374445856,1753303847969,-381.406351,0.000225,7]
[374445858,1753303847978,-293.98754155,0.000225,7]
[374445873,1753303848116,-460.0,0.0001965,2]
[374445875,1753303848126,-460.0,0.00019653,2]
[374445877,1753303848136,-460.0,0.00019653,2]
[374445879,1753303848147,-192.95960808,0.00019754,2]
[374445881,1753303848157,-460.0,0.00019927,2]
[374445884,1753303848169,-3501.78576042,0.00020663,2]
[374445886,1753303848194,-21498.21423958,0.00020663,2]
[374445888,1753303848204,-9673.83991862,0.00020663,2]
[374445890,1753303848219,-87.41880945,0.000225,7]
[374445892,1753303848238,-151.0,0.000225,7]
[374445894,1753303848253,-151.0,0.000225,7]
[374445896,1753303848263,-440.206535,0.000225,7]
[374445898,1753303848273,-440.206535,0.000225,7]
[374445900,1753303848283,-440.206535,0.000225,7]
[374445902,1753303848292,-440.206535,0.000225,7]
[374445904,1753303848301,-151.0,0.000225,7]
[374445906,1753303848311,-282.286241,0.000225,7]
[374445908,1753303848320,-282.286241,0.000225,7]
[374445910,1753303848329,-365.072147,0.000225,7]
[374445912,1753303848339,-365.072147,0.000225,7]
[374445914,1753303848349,-159.788849,0.000225,7]
[374445916,1753303848358,-159.788849,0.000225,7]
[374445918,1753303848367,-625.128299,0.000225,7]
[374445920,1753303848376,-625.128299,0.000225,7]
[374445922,1753303848386,-151.0,0.000225,7]
[374445924,1753303848395,-151.0,0.000225,7]
[374445926,1753303848404,-151.0,0.000225,7]
[374445928,1753303848413,-151.0,0.000225,7]
[374445930,1753303848423,-151.0,0.000225,2]
[374445932,1753303848434,-151.0,0.000225,7]
[374445934,1753303848443,-151.0,0.000225,7]
[374445936,1753303848452,-151.0,0.000225,7]
[374445938,1753303848462,-151.0,0.000225,7]
[374445940,1753303848472,-30561.87,0.000225,2]
[374445942,1753303848481,-1102.697874,0.000225,7]
[374445944,1753303848491,-1102.697874,0.000225,7]
[374445946,1753303848500,-162.568138,0.000225,7]
[374445948,1753303848509,-162.568138,0.000225,7]
[374445950,1753303848518,-162.568138,0.000225,7]
[374445952,1753303848527,-162.568138,0.000225,7]
[374445953,1753303848536,-151.0,0.000225,7]
[374445954,1753303848546,-151.0,0.000225,7]
[374445956,1753303848556,-151.0,0.000225,7]
[374445957,1753303848566,-151.0,0.000225,7]
[374445959,1753303848575,-194.659534,0.000225,7]
[374445961,1753303848584,-194.659534,0.000225,7]
[374445962,1753303848593,-194.659534,0.000225,7]
[374445963,1753303848603,-194.659534,0.000225,7]
[374445964,1753303848612,-184.57566,0.000225,7]
[374445965,1753303848621,-184.57566,0.000225,7]
[374445966,1753303848631,-184.57566,0.000225,7]
[374445967,1753303848641,-184.57566,0.000225,7]
[374445968,1753303848650,-311.0,0.0002251,2]
[374445969,1753303848659,-311.0,0.00022518,2]
[374445970,1753303848669,-641.21,0.00022535,7]
[374445971,1753303848680,-1160.50209227,0.00022541,2]
[374445972,1753303848690,-808.7,0.00022543,5]
[374445973,1753303848699,-311.0,0.00022554,2]
[374445974,1753303848708,-226.404611,0.00022554,7]
[374445975,1753303848717,-226.404611,0.00022554,7]
[374445976,1753303848726,-150.0,0.00022568,2]
[374445977,1753303848736,-250.0,0.00022573,2]
[374445978,1753303848745,-278.610205,0.00022603,2]
[374445979,1753303848755,-254.411561,0.00022621,3]
[374445980,1753303848764,-209.889538,0.00022621,3]
[374445981,1753303848774,-311.0,0.00022623,2]
[374445982,1753303848783,-311.0,0.00022626,2]
[374445983,1753303848792,-151.0,0.00022631,7]
[374445984,1753303848801,-641.21,0.00022635,2]
[374445985,1753303848811,-668.33,0.00022665,2]
[374445986,1753303848820,-777.33,0.00022666,2]
[374445987,1753303848829,-879.56,0.00022666,2]
[374445988,1753303848839,-586.53,0.00022666,2]
[374445989,1753303848849,-1878.19,0.00022666,2]
[374445990,1753303848858,-1010.62,0.00022667,2]
[374445991,1753303848868,-460.0,0.00022668,2]
[374445992,1753303848878,-626.83,0.00022668,2]
[374445993,1753303848887,-151.0,0.00022669,7]
[374445994,1753303848897,-151.0,0.00022669,7]
[374445995,1753303848906,-151.0,0.00022669,7]
[374445996,1753303848915,-282.286241,0.00022669,7]
[374445997,1753303848927,-282.286241,0.00022669,7]
[374445998,1753303848936,-151.0,0.00022669,2]
[374445999,1753303848945,-1660.13,0.00022669,2]
[374446000,1753303848954,-311.0,0.00022676,2]
[374446001,1753303848963,-800.0,0.00022681,2]
[374446002,1753303848973,-293.331234,0.000227,7]
[374446003,1753303848983,-151.0,0.000227,8]
[374446004,1753303848993,-311.0,0.00022712,2]
[374446005,1753303849002,-231.325386,0.00022717,7]
[374446006,1753303849011,-231.325386,0.00022717,7]
[374446007,1753303849021,-151.0,0.00022717,7]
[374446008,1753303849030,-381.406351,0.00022717,7]
[374446009,1753303849040,-381.406351,0.00022717,7]
[374446010,1753303849049,-440.206535,0.00022717,7]
[374446011,1753303849059,-440.206535,0.00022717,7]
[374446012,1753303849069,-311.0,0.00022728,2]
[374446013,1753303849079,-641.21,0.00022735,4]
[374446014,1753303849088,-151.0,0.00022752,7]
[374446015,1753303849099,-332.903844,0.00022752,7]
[374446016,1753303849112,-332.903844,0.00022752,7]
[374446017,1753303849122,-200.0,0.00022759,2]
[374446018,1753303849131,-421.795716,0.00022768,7]
[374446019,1753303849142,-421.795716,0.00022768,7]
[374446020,1753303849151,-460.0,0.00022769,2]
[374446021,1753303849160,-651.05,0.00022769,2]
[374446022,1753303849170,-577.86,0.00022769,2]
[374446023,1753303849181,-716.81,0.00022769,2]
[374446025,1753303849190,-151.0,0.0002277,7]
[374446027,1753303849200,-151.0,0.0002277,7]
[374446029,1753303849210,-314.586052,0.0002277,7]
[374446031,1753303849219,-314.586052,0.0002277,7]
[374446033,1753303849229,-151.0,0.00022773,2]
[374446035,1753303849239,-584.0,0.00022773,2]
[374446037,1753303849248,-424.0,0.00022773,2]
[374446039,1753303849258,-216.862,0.00022783,2]
[374446041,1753303849267,-250.0,0.00022783,2]
[374446043,1753303849277,-150.0,0.00022783,2]
[374446045,1753303849286,-260.084,0.00022783,2]
[374446047,1753303849295,-217.664,0.00022783,2]
[374446049,1753303849307,-800.0,0.00022787,2]
[374446051,1753303849316,-160.0,0.000228,3]
[374446053,1753303849326,-12622.36869388,0.000228,3]
[374446055,1753303849335,-476.696448,0.000228,3]
[374446057,1753303849344,-214.67886746,0.000228,3]
[374446059,1753303849353,-641.21,0.00022835,4]
[374446061,1753303849362,-808.7,0.00022851,6]
[374446063,1753303849371,-4756.35038003,0.00022856,2]
[374446065,1753303849380,-460.0,0.00022864,2]
[374446067,1753303849390,-151.426985,0.00022873,7]
[374446069,1753303849399,-151.0,0.00022873,7]
[374446071,1753303849408,-2456.940353,0.00022873,7]
[374446073,1753303849418,-151.0,0.00022873,7]
[374446075,1753303849429,-151.0,0.00022873,7]
[374446077,1753303849438,-311.0,0.0002288,2]
[374446079,1753303849447,-151.0,0.00022885,7]
[374446081,1753303849457,-151.0,0.00022885,7]
[374446083,1753303849466,-229.78124,0.00022885,7]
[374446085,1753303849475,-229.78124,0.00022885,7]
[374446087,1753303849485,-151.422836,0.00022885,7]
[374446089,1753303849494,-1157.665437,0.00022885,7]
[374446091,1753303849503,-1157.665437,0.00022885,7]
[374446092,1753303849512,-151.0,0.00022885,7]
[374446094,1753303849521,-151.0,0.00022885,7]
[374446096,1753303849530,-1023.213546,0.00022885,7]
[374446098,1753303849539,-1023.213546,0.00022885,7]
[374446100,1753303849549,-151.0,0.00022885,7]
[374446102,1753303849558,-891.964585,0.00022885,7]
[374446104,1753303849567,-891.964585,0.00022885,7]
[374446106,1753303849576,-151.0,0.00022885,7]
[374446108,1753303849586,-290.86578,0.00022885,7]
[374446110,1753303849596,-151.0,0.00022885,7]
[374446113,1753303849606,-151.0,0.00022885,7]
[374446115,1753303849616,-194.659534,0.00022885,7]
[374446117,1753303849625,-194.659534,0.00022885,7]
[374446119,1753303849634,-9344.61691599,0.000229,7]
[374446121,1753303849647,-3303.95468031,0.000229,7]
[374446123,1753303849658,-920.48096962,0.000229,7]
[374446125,1753303849670,-942.97117501,0.000229,7]
[374446133,1753303849735,-1193.04204741,0.000229,7]
[374446135,1753303849747,-17627.18667453,0.000229,7]
[374446137,1753303849757,-151.0,0.000229,7]
[374446139,1753303849766,-151.0,0.000229,7]
[374446141,1753303849775,-151.0,0.000229,7]
[374446143,1753303849784,-151.0,0.000229,7]
[374446145,1753303849794,-151.0,0.000229,7]
[374446147,1753303849803,-151.0,0.000229,7]
[374446149,1753303849813,-151.0,0.000229,7]
[374446151,1753303849823,-193.400257,0.000229,7]
[374446166,1753303849949,-193.400257,0.000229,7]
[374446168,1753303849959,-151.0,0.000229,7]
[374446170,1753303849968,-224.874054,0.000229,7]
[374446172,1753303849978,-151.0,0.000229,7]
[374446174,1753303849987,-151.0,0.000229,7]
[374446175,1753303849996,-151.0,0.000229,7]
[374446177,1753303850006,-151.0,0.000229,7]
[374446180,1753303850015,-151.0,0.000229,7]
[374446181,1753303850024,-151.0,0.000229,7]
[374446183,1753303850034,-151.0,0.000229,7]
[374446185,1753303850044,-182.933249,0.000229,7]
[374446187,1753303850053,-182.933249,0.000229,7]
[374446189,1753303850063,-231.325386,0.000229,7]
[374446192,1753303850074,-231.325386,0.000229,7]
[374446193,1753303850085,-151.0,0.000229,7]
[374446196,1753303850095,-151.0,0.000229,7]
[374446197,1753303850104,-381.406351,0.000229,7]
[374446199,1753303850115,-381.406351,0.000229,7]
[374446201,1753303850124,-151.0,0.000229,7]
[374446203,1753303850133,-151.0,0.000229,7]
[374446206,1753303850143,-440.206535,0.000229,7]
[374446208,1753303850153,-440.206535,0.000229,7]
[374446209,1753303850163,-282.286241,0.000229,7]
[374446211,1753303850175,-282.286241,0.000229,7]
[374446213,1753303850190,-365.072147,0.000229,7]
[374446215,1753303850200,-365.072147,0.000229,7]
[374446217,1753303850209,-159.788849,0.000229,7]
[374446219,1753303850218,-159.788849,0.000229,7]
[374446221,1753303850230,-625.128299,0.000229,7]
[374446224,1753303850241,-625.128299,0.000229,7]
[374446225,1753303850250,-151.0,0.000229,2]
[374446227,1753303850260,-1102.697874,0.000229,7]
[374446229,1753303850269,-1102.697874,0.000229,7]
[374446231,1753303850279,-162.568138,0.000229,7]
[374446233,1753303850288,-162.568138,0.000229,7]
[374446235,1753303850298,-151.0,0.000229,7]
[374446237,1753303850307,-151.0,0.000229,7]
[374446239,1753303850317,-184.57566,0.000229,7]
[374446241,1753303850327,-184.57566,0.000229,7]
[374446243,1753303850338,-421.795716,0.00022903,7]
[374446245,1753303850347,-421.795716,0.00022903,7]
[374446247,1753303850356,-20054.46855294,0.00022929,2]
[374446249,1753303850367,-161.214973,0.00022929,7]
[374446251,1753303850376,-151.0,0.00022929,7]
[374446253,1753303850386,-226.404611,0.00022929,7]
[374446255,1753303850396,-226.404611,0.00022929,7]
[374446257,1753303850406,-151.0,0.00022929,7]
[374446259,1753303850417,-151.0,0.00022929,7]
[374446261,1753303850427,-151.0,0.00022929,7]
[374446263,1753303850440,-151.0,0.00022929,7]
[374446265,1753303850449,-151.0,0.00022929,7]
[374446267,1753303850458,-400.0,0.00022929,3]
[374446269,1753303850468,-151.0,0.00022929,7]
[374446271,1753303850477,-151.0,0.00022929,7]
[374446273,1753303850488,-151.0,0.00022929,7]
[374446275,1753303850497,-151.0,0.00022929,7]
[374446277,1753303850506,-151.0,0.00022929,7]
[374446279,1753303850515,-151.0,0.00022929,7]
[374446281,1753303850525,-238.571994,0.00022929,7]
[374446283,1753303850534,-229.78124,0.00022929,7]
[374446285,1753303850544,-151.0,0.00022929,7]
[374446287,1753303850553,-229.78124,0.00022929,7]
[374446289,1753303850563,-151.0,0.00022929,7]
[374446291,1753303850572,-2456.940353,0.00022929,7]
[374446293,1753303850582,-2456.940353,0.00022929,7]
[374446295,1753303850592,-151.0,0.00022929,7]
[374446297,1753303850602,-151.0,0.00022929,7]
[374446299,1753303850611,-1157.665437,0.00022929,7]
[374446301,1753303850620,-1157.665437,0.00022929,7]
[374446303,1753303850629,-151.0,0.00022929,7]
[374446305,1753303850638,-151.0,0.00022929,7]
[374446307,1753303850648,-1023.213546,0.00022929,7]
[374446309,1753303850658,-1023.213546,0.00022929,7]
[374446311,1753303850668,-151.0,0.00022929,7]
[374446313,1753303850677,-151.0,0.00022929,7]
[374446315,1753303850691,-151.0,0.00022929,7]
[374446317,1753303850700,-151.0,0.00022929,7]
[374446319,1753303850709,-332.903844,0.00022929,7]
[374446321,1753303850719,-332.903844,0.00022929,7]
[374446323,1753303850728,-314.586052,0.00022929,7]
[374446325,1753303850737,-314.586052,0.00022929,7]
[374446327,1753303850746,-891.964585,0.00022929,7]
[374446329,1753303850755,-891.964585,0.00022929,7]
[374446331,1753303850765,-151.0,0.00022929,7]
[374446333,1753303850774,-151.0,0.00022929,7]
[374446335,1753303850784,-151.0,0.00022929,7]
[374446337,1753303850793,-194.659534,0.00022929,7]
[374446339,1753303850802,-194.659534,0.00022929,7]
[374446341,1753303850811,-641.21,0.00022935,5]
[374446343,1753303850821,-311.0,0.00022936,2]
[374446345,1753303850830,-668.33,0.00022939,2]
[374446347,1753303850840,-777.33,0.0002294,2]
[374446349,1753303850849,-879.56,0.0002294,2]
[374446351,1753303850858,-586.53,0.0002294,2]
[374446353,1753303850868,-1878.19,0.0002294,2]
[374446355,1753303850877,-1010.62,0.00022941,2]
[374446357,1753303850887,-460.0,0.00022942,2]
[374446358,1753303850897,-626.83,0.00022942,2]
[374446360,1753303850907,-1660.13,0.00022943,2]
[374446363,1753303850917,-205.0,0.0002295,2]
[374446364,1753303850926,-311.0,0.00022972,2]
[374446366,1753303850940,-500.0,0.00022973,2]
[374446368,1753303850949,-500.0,0.00022973,2]
[374446370,1753303850959,-500.0,0.00022973,2]
[374446372,1753303850968,-500.40877296,0.00022973,2]
[374446374,1753303850978,-500.0,0.00022973,2]
[374446376,1753303850987,-500.0,0.00022973,2]
[374446378,1753303850997,-186.03008741,0.00022973,2]
[374446380,1753303851006,-500.0,0.00022973,2]
[374446382,1753303851015,-308.34046914,0.00022973,2]
[374446384,1753303851025,-500.0,0.00022973,2]
[374446386,1753303851034,-413.37837299,0.00022973,2]
[374446388,1753303851047,-86.62162701,0.00022973,2]
[374446390,1753303851056,-500.0,0.00022973,2]
[374446392,1753303851066,-500.0,0.00022973,2]
[374446394,1753303851075,-500.0,0.00022973,2]
[374446396,1753303851084,-386.60069791,0.00022973,2]
[374446398,1753303851093,-500.0,0.00022973,2]
[374446399,1753303851104,-500.0,0.00022973,2]
[374446401,1753303851115,-500.0,0.00022973,2]
[374446403,1753303851124,-500.0,0.00022973,2]
[374446405,1753303851134,-500.0,0.00022973,2]
[374446407,1753303851144,-500.0,0.00022973,2]
[374446409,1753303851155,-500.0,0.00022973,2]
[374446411,1753303851164,-500.0,0.00022973,2]
[374446413,1753303851173,-500.0,0.00022973,2]
[374446415,1753303851187,-500.0,0.00022973,2]
[374446417,1753303851196,-500.0,0.00022973,2]
[374446419,1753303851205,-500.0,0.00022973,2]
[374446421,1753303851215,-500.0,0.00022973,2]
[374446423,1753303851224,-500.0,0.00022973,2]
[374446425,1753303851233,-500.0,0.00022973,2]
[374446427,1753303851243,-500.0,0.00022973,2]
[374446429,1753303851252,-500.0,0.00022973,2]
[374446431,1753303851261,-500.0,0.00022973,2]
[374446433,1753303851270,-500.0,0.00022973,2]
[374446434,1753303851280,-500.0,0.00022973,2]
[374446436,1753303851289,-500.0,0.00022973,2]
[374446438,1753303851299,-500.0,0.00022973,2]
[374446440,1753303851308,-500.0,0.00022973,2]
[374446442,1753303851318,-500.0,0.00022973,2]
[374446444,1753303851327,-365.072147,0.00022973,7]
[374446446,1753303851337,-365.072147,0.00022973,7]
[374446448,1753303851346,-159.788849,0.00022973,7]
[374446450,1753303851355,-159.788849,0.00022973,7]
[374446452,1753303851365,-625.128299,0.00022973,7]
[374446454,1753303851375,-625.128299,0.00022973,7]
[374446456,1753303851384,-151.0,0.00022973,7]
[374446458,1753303851393,-151.0,0.00022973,7]
[374446460,1753303851402,-184.57566,0.00022973,7]
[374446462,1753303851411,-184.57566,0.00022973,7]
[374446464,1753303851420,-153.0,0.00022974,2]
[374446465,1753303851429,-153.0,0.00022974,2]
[374446467,1753303851440,-153.0,0.00022974,2]
[374446469,1753303851449,-153.0,0.00022974,2]
[374446471,1753303851459,-153.0,0.00022974,2]
[374446473,1753303851468,-153.0,0.00022974,2]
[374446475,1753303851477,-153.0,0.00022974,2]
[374446477,1753303851486,-153.0,0.00022974,2]
[374446479,1753303851495,-153.0,0.00022974,2]
[374446481,1753303851504,-153.0,0.00022974,2]
[374446483,1753303851514,-153.0,0.00022974,2]
[374446485,1753303851523,-153.0,0.00022974,2]
[374446487,1753303851532,-153.0,0.00022974,2]
[374446489,1753303851543,-153.0,0.00022974,2]
[374446491,1753303851551,-153.0,0.00022974,2]
[374446493,1753303851561,-153.0,0.00022974,2]
[374446495,1753303851571,-153.0,0.00022974,2]
[374446497,1753303851580,-153.0,0.00022974,2]
[374446499,1753303851589,-1102.697874,0.00022974,7]
[374446501,1753303851598,-1102.697874,0.00022974,7]
[374446502,1753303851607,-162.568138,0.00022974,7]
[374446504,1753303851617,-162.568138,0.00022974,7]
[374446506,1753303851627,-3021.27119451,0.0002298,2]
[374446508,1753303851636,-199.50308664,0.00022999,2]
[374446511,1753303851650,-1407.49691336,0.00022999,2]
[374446513,1753303851659,-3600.9987104,0.00023,10]
[374447726,1753303865566,-226.49149221,0.0001843,2]
[374448147,1753303869857,-43.53983777,0.0001843,2]
[374448930,1753303967087,4111.74641179,0.00019,30]
[374448939,1753304411210,-152.38110291,0.00018463,2]
[374448944,1753304568677,253.459781,0.00013699,2]
[374448946,1753304732194,-850.47466021,0.00018278,2]
[374448947,1753304732217,-161.364859,0.0001865,2]
[374448948,1753304732240,-300.0,0.00018867,2]
[374448949,1753304732262,-214.0,0.00018867,2]
[374448950,1753304732283,-221.0,0.00018867,2]
[374448951,1753304732305,-434.14720152,0.00018867,2]
[374448952,1753304748082,-300.47725276,0.00018867,2]
[374448953,1753304801166,150.0,0.00021868,30]
[374448954,1753304837123,-383.73872766,0.00018867,2]
[374448955,1753304841083,-81.63681806,0.00018867,2]
[374448956,1753304841103,-519.74120897,0.00018867,2]
[374448994,1753305032733,-187.17464461,0.00018579,2]
[374448995,1753305032743,-1248.55120241,0.00018668,2]
[374448996,1753305032753,-808.49369977,0.00018768,2]
[374448997,1753305032763,-54.42121912,0.00018866,2]
[374448998,1753305032775,-245.57878088,0.00018866,2]
[374449000,1753305032785,-808.30626561,0.00018866,2]
[374449002,1753305032797,-391.69373439,0.00018866,2]
[374449003,1753305032807,-500.0,0.00018867,2]
[374449004,1753305032816,-500.0,0.00018867,2]
[374449005,1753305032825,-500.0,0.00018867,2]
[374449006,1753305032834,-500.0,0.00018867,2]
[374449007,1753305032844,-500.0,0.00018867,2]
[374449008,1753305032853,-500.0,0.00018867,2]
[374449009,1753305032863,-500.0,0.00018867,2]
[374449010,1753305032872,-500.0,0.00018867,2]
[374449011,1753305032882,-500.0,0.00018867,2]
[374449012,1753305032891,-555.55097678,0.00018867,2]
[374449013,1753305032901,-500.0,0.00018867,2]
[374449014,1753305032910,-680.25879103,0.00018867,2]
[374449015,1753305032920,-1003.43170002,0.00018868,2]
[374449016,1753305032929,-29048.52374098,0.00018868,2]
[374449017,1753305032941,-1979.31414135,0.00018868,2]
[374449018,1753305032953,-4129.87159751,0.00018868,2]
[374449019,1753305032966,-500.0,0.00018869,2]
[374449020,1753305032976,-500.0,0.00018869,2]
[374449021,1753305032985,-500.0,0.00018869,2]
[374449022,1753305032995,-500.0,0.00018869,2]
[374449023,1753305033005,-500.0,0.00018869,2]
[374449024,1753305033015,-500.0,0.00018869,2]
[374449025,1753305033025,-160.10414539,0.00018869,2]
[374449026,1753305033034,-370.54479336,0.000189,2]
[374449027,1753305033050,-623.03935041,0.000189,2]
[374449028,1753305033067,-1675.15709766,0.000189,2]
[374449029,1753305033078,-162.01879799,0.0001906,2]
[374449030,1753305033087,-460.0,0.00019178,2]
[374449031,1753305033097,-460.0,0.00019178,2]
[374449032,1753305033107,-460.0,0.00019178,2]
[374449033,1753305033117,-466.48165428,0.00019178,2]
[374449034,1753305033127,-460.0,0.00019178,2]
[374449035,1753305033136,-460.0,0.00019178,2]
[374449036,1753305033147,-527.16458066,0.00019178,2]
[374449037,1753305033156,-460.0,0.00019178,2]
[374449038,1753305033166,-460.0,0.00019178,2]
[374449039,1753305033176,-460.0,0.00019178,2]
[374449040,1753305033186,-445.740944,0.00019178,2]
[374449051,1753305038643,-14.259056,0.00019178,2]
[374449052,1753305038653,-460.0,0.00019178,2]
[374449053,1753305038663,-460.0,0.00019178,2]
[374449054,1753305038672,-460.0,0.00019178,2]
[374449055,1753305038683,-460.0,0.00019178,2]
[374449056,1753305038692,-599.39,0.00019178,2]
[374449057,1753305038701,-460.0,0.00019178,2]
[374449058,1753305038711,-460.0,0.00019178,2]